fUST/lending_fUST_20241130
["ID","MTS","AMOUNT","RATE_DAILY","PERIOD"]
[343737097,1732951833538,-587.24928215,0.00021792,2]
[343737099,1732951833548,-500.0,0.00021792,2]
[343737100,1732951833558,-500.0,0.00021792,2]
[343737101,1732951833568,-500.0,0.00021792,2]
[343737102,1732951833578,-500.0,0.00021792,2]
[343737103,1732951833587,-500.0,0.00021792,2]
[343737104,1732951833597,-500.0,0.00021792,2]
[343737105,1732951833607,-500.0,0.00021792,2]
[343737106,1732951833617,-500.0,0.00021792,2]
[343737107,1732951833627,-250.0,0.00021792,2]
[343737108,1732951833637,-500.0,0.00021792,2]
[343737109,1732951833646,-500.0,0.00021792,2]
[343737110,1732951833657,-500.0,0.00021792,2]
[343737111,1732951833667,-500.0,0.00021792,2]
[343737112,1732951833678,-500.0,0.00021792,2]
[343737115,1732951833688,-500.0,0.00021792,2]
[343737117,1732951833699,-500.0,0.00021792,2]
[343737118,1732951833708,-500.0,0.00021792,2]
[343737121,1732951833718,-500.0,0.00021792,2]
[343737122,1732951833729,-500.0,0.00021792,2]
[343737124,1732951833739,-500.0,0.00021792,2]
[343737126,1732951833749,-500.0,0.00021792,2]
[343737127,1732951833759,-500.0,0.00021792,2]
[343737128,1732951833769,-500.0,0.00021792,2]
[343737129,1732951833780,-500.0,0.00021792,2]
[343737131,1732951833790,-353.93997712,0.00021792,2]
[343737132,1732951833800,-500.0,0.00021792,2]
[343737133,1732951833810,-500.0,0.00021792,2]
[343737134,1732951833819,-500.0,0.00021792,2]
[343737135,1732951833829,-500.0,0.00021792,2]
[343737136,1732951833838,-500.0,0.00021792,2]
[343737137,1732951833849,-500.0,0.00021792,2]
[343737138,1732951833858,-500.0,0.00021792,2]
[343737139,1732951833867,-643.44456292,0.00021792,2]
[343737140,1732951833879,-500.0,0.00021792,2]
[343737141,1732951833888,-500.0,0.00021792,2]
[343737142,1732951833898,-500.0,0.00021792,2]
[343737143,1732951833908,-500.0,0.00021792,2]
[343737144,1732951833917,-500.0,0.00021792,2]
[343737145,1732951833928,-500.0,0.00021792,2]
[343737146,1732951833937,-500.0,0.00021792,2]
[343737147,1732951833946,-500.0,0.00021792,2]
[343737148,1732951833956,-500.0,0.00021792,2]
[343737149,1732951833966,-500.0,0.00021792,2]
[343737150,1732951833977,-500.0,0.00021792,2]
[343737151,1732951833987,-500.0,0.00021792,2]
[343737152,1732951833998,-252.55655732,0.00021792,2]
[343737153,1732951834008,-500.0,0.00021792,2]
[343737154,1732951834017,-500.0,0.00021792,2]
[343737155,1732951834027,-500.0,0.00021792,2]
[343737156,1732951834035,-500.0,0.00021792,2]
[343737157,1732951834045,-500.0,0.00021792,2]
[343737158,1732951834054,-182.60495143,0.00021792,2]
[343737159,1732951834064,-24900.0,0.00021793,2]
[343737160,1732951834073,-1939.29261476,0.00021804,2]
[343737161,1732951834083,-170.8717293,0.00021904,2]
[343737162,1732951834092,-420.0,0.00021988,2]
[343737163,1732951834102,-250.0,0.00022178,2]
[343737164,1732951834112,-211.72695186,0.00022321,2]
[343737165,1732951834122,-1000.0,0.00022321,2]
[343737166,1732951834133,-282.96156645,0.00022321,2]
[343737167,1732951834143,-1000.0,0.00022321,2]
[343737168,1732951834154,-504.76032522,0.00022759,2]
[343737169,1732951834163,-166.121001,0.00022759,2]
[343737170,1732951834173,-155.53013329,0.00022973,2]
[343737171,1732951834183,-377.25853918,0.00022973,2]
[343737172,1732951834192,-5000.0,0.00022973,2]
[343737173,1732951834202,-701.55164431,0.00023,2]
[343737174,1732951834336,-1939.29261474,0.00023038,2]
[343737175,1732951834346,-9177.37502064,0.00023099,2]
[343737176,1732951834357,-500.0,0.00023273,2]
[343737177,1732951834367,-9177.37502064,0.00023287,2]
[343737178,1732951834376,-1500.0,0.00023322,2]
[343737179,1732951834386,-1500.0,0.00023322,2]
[343737180,1732951834396,-9177.37502066,0.00023657,2]
[343737181,1732951834406,-587.0,0.00023701,2]
[343737182,1732951834415,-583.22,0.00023788,3]
[343737183,1732951834425,-503.93387886,0.00023821,2]
[343737184,1732951834437,-5000.0,0.0002397,2]
[343737185,1732951834447,-5000.0,0.0002397,2]
[343737186,1732951834457,-5000.0,0.00023972,2]
[343737187,1732951834465,-556.40249935,0.00023973,2]
[343737188,1732951834478,-202.38351378,0.00023973,2]
[343737189,1732951834488,-500.0,0.00023973,2]
[343737190,1732951834497,-159.85527271,0.00023973,2]
[343737191,1732951834507,-1281.51414047,0.00023992,5]
[343737192,1732951834518,-3593.75032522,0.00023996,2]
[343737193,1732951834529,-29957.66982211,0.00024,3]
[343737194,1732951834539,-1169.27083333,0.00024,3]
[343737195,1732951834549,-1169.27083333,0.00024,3]
[343737196,1732951834559,-1169.27083333,0.00024,3]
[343737197,1732951834569,-151.0,0.00024,7]
[343737198,1732951834579,-171.307987,0.00024,7]
[343737199,1732951834588,-171.307987,0.00024,7]
[343737200,1732951834597,-587.0,0.00024187,2]
[343737201,1732951834608,-1939.29261474,0.00024273,2]
[343737202,1732951834618,-2000.0,0.0002462,2]
[343737203,1732951834628,-2000.0,0.0002462,2]
[343737204,1732951834638,-197.199,0.00025046,9]
[343737205,1732951834648,-168.565809,0.00025054,2]
[343737206,1732951834657,-1939.29261474,0.00025507,2]
[343737207,1732951834667,-823.0,0.00025808,2]
[343737208,1732951834677,-2317.26608637,0.00026156,2]
[343737209,1732951834687,-500.0,0.00026566,7]
[343737210,1732951834697,-823.0,0.00026605,2]
[343737211,1732951834707,-2178.0,0.00026641,2]
[343737212,1732951834717,-1939.29261474,0.00026741,2]
[343737213,1732951834728,-38399.56802835,0.00027,60]
[343737214,1732951834738,-240.137909,0.000272,10]
[343737215,1732951834748,-231.051234,0.00027381,2]
[343737216,1732951834758,-1934.49917043,0.000274,2]
[343737217,1732951834768,-500.0,0.00027473,5]
[343737218,1732951834778,-372.72041143,0.00027473,5]
[343737219,1732951834788,-500.0,0.00027473,5]
[343737220,1732951834798,-500.0,0.00027473,5]
[343737221,1732951834807,-151.09457193,0.00027473,5]
[343737222,1732951834817,-500.0,0.00027473,5]
[343737223,1732951834827,-160.20685677,0.00027473,2]
[343737224,1732951834836,-500.0,0.00027473,5]
[343737225,1732951834846,-500.0,0.00027473,5]
[343737226,1732951834855,-500.0,0.00027473,5]
[343737227,1732951834865,-502.62271045,0.00027473,5]
[343737228,1732951834874,-554.1696337,0.00027473,5]
[343737229,1732951834884,-500.0,0.00027473,5]
[343737230,1732951834894,-1514.30162018,0.000275,2]
[343737231,1732951834904,-4455145.19014169,0.000275,5]
[343737232,1732951834918,-4990.91083669,0.000275,5]
[343737250,1732951838936,-1180.05398093,0.00026156,2]
[343737252,1732951838945,-48065.75827958,0.000275,5]
[343737254,1732951838956,-827.99999998,0.000275,5]
[343737256,1732951838968,-499.77566816,0.000275,5]
[343737329,1732951840649,-166.7,0.0002749,10]
[343737330,1732951840659,-309.3323983,0.000275,5]
[343737331,1732951840671,-529.1764028,0.000275,5]
[343737332,1732951840683,-823.2107342,0.000275,5]
[343737333,1732951840694,-471.8561426,0.000275,5]
[343737334,1732951840705,-408.1185155,0.000275,5]
[343737335,1732951840717,-50813.71911548,0.000275,5]
[343737336,1732951840728,-634.56425145,0.000275,5]
[343737337,1732951840742,-15938.67235664,0.000275,5]
[343737391,1732951843704,-10325.50642773,0.000275,5]
[343737392,1732951843736,-4295.27910266,0.000275,5]
[343737394,1732951843952,-22.40640556,0.000275,5]
[343737403,1732951846661,-23049.37739421,0.000275,5]
[343737408,1732951902375,1093.54239083,0.00025999,60]
[343737444,1732952972093,-490.0,0.0002,2]
[343737472,1732953032162,-679.27083333,0.0002,2]
[343737476,1732953032187,-300.0,0.00023732,2]
[343737478,1732953032197,-300.0,0.00023732,2]
[343737480,1732953032207,-7974.0,0.00023732,2]
[343737482,1732953032216,-1169.27083333,0.00023733,2]
[343737484,1732953032226,-9762.5741638,0.00023738,2]
[343737486,1732953032235,-168.4322,0.0002379,2]
[343737488,1732953032246,-631.601537,0.00024,7]
[343737490,1732953032255,-631.601537,0.00024,7]
[343737492,1732953032264,-250.0,0.00024068,2]
[343737494,1732953032274,-213.538751,0.00024148,2]
[343737496,1732953032284,-167.56247,0.00024559,2]
[343737498,1732953032294,-302.69733596,0.00025,2]
[343737499,1732953032303,-197.199,0.00025295,9]
[343737500,1732953032313,-420.0,0.00025743,2]
[343737501,1732953032322,-8773.6472285,0.00025811,2]
[343737502,1732953032331,-727.23473058,0.00026004,2]
[343737503,1732953032341,-645.96097791,0.00026104,2]
[343737504,1732953032351,-500.0,0.00026104,2]
[343737505,1732953032361,-500.0,0.00026104,2]
[343737506,1732953032371,-500.0,0.00026104,2]
[343737507,1732953032380,-229.68147984,0.00026104,2]
[343737508,1732953032390,-500.0,0.00026104,2]
[343737509,1732953032399,-500.0,0.00026104,2]
[343737510,1732953032409,-500.0,0.00026104,2]
[343737511,1732953032419,-500.0,0.00026104,2]
[343737512,1732953032427,-85.80602447,0.00026104,2]
[343737513,1732953032439,-368.08445522,0.00026104,2]
[343737514,1732953032448,-500.0,0.00026104,2]
[343737515,1732953032457,-500.0,0.00026104,2]
[343737516,1732953032466,-500.0,0.00026104,2]
[343737517,1732953032476,-192.59090878,0.00026104,2]
[343737518,1732953032485,-500.0,0.00026104,2]
[343737519,1732953032496,-500.0,0.00026104,2]
[343737520,1732953032506,-92.59220714,0.00026104,2]
[343737541,1732953037927,-420.0,0.00026105,2]
[343737543,1732953037937,-8773.6472285,0.00026111,2]
[343737545,1732953037947,-500.0,0.000262,2]
[343737547,1732953037957,-567.19186825,0.000262,2]
[343737548,1732953037966,-500.0,0.000262,2]
[343737550,1732953037976,-511.59275304,0.000262,2]
[343737552,1732953037986,-500.70311514,0.000262,2]
[343737554,1732953037995,-500.0,0.000262,2]
[343737557,1732953038007,-175.072907,0.00026492,2]
[343737559,1732953038017,-8773.6472285,0.00026493,2]
[343737561,1732953038026,-384.03353484,0.00026565,2]
[343737562,1732953038036,-500.0,0.00026565,2]
[343737564,1732953038045,-381.30049746,0.00026565,2]
[343737566,1732953038055,-306.53583189,0.00026565,2]
[343737568,1732953038065,-203.42810186,0.00026565,2]
[343737570,1732953038074,-500.0,0.00026565,2]
[343737572,1732953038083,-500.0,0.00026566,7]
[343737573,1732953038092,-727.23473052,0.00026626,2]
[343737574,1732953038102,-309.392,0.0002664,2]
[343737575,1732953038111,-8773.6472285,0.00026718,2]
[343737576,1732953038120,-446.31,0.00026865,2]
[343737577,1732953038130,-8773.6472285,0.00027005,2]
[343737578,1732953038140,-727.23473052,0.00027247,2]
[343737579,1732953038150,-8773.6472289,0.00027373,2]
[343737580,1732953038160,-500.0,0.00027397,2]
[343737581,1732953038170,-4813.26748581,0.000274,7]
[343737582,1732953038180,-2484.82542966,0.000274,2]
[343737583,1732953038192,-5000.0,0.00027402,7]
[343737584,1732953038203,-356.5659362,0.00027473,5]
[343737585,1732953038214,-503.17059484,0.00027499,7]
[343737586,1732953038227,-1000.0,0.00027499,7]
[343737588,1732953038239,-1000.0,0.00027499,14]
[343737589,1732953038250,-1000.0,0.00027499,15]
[343737590,1732953038260,-1000.0,0.00027499,21]
[343737591,1732953038270,-1000.0,0.00027499,29]
[343737593,1732953038280,-76594.88816528,0.000275,5]
[343737623,1732953043085,-500.0,0.00026103,2]
[343737624,1732953043096,-500.0,0.00026103,2]
[343737625,1732953043106,-500.0,0.00026103,2]
[343737626,1732953043115,-406.76340176,0.00026103,2]
[343737627,1732953043126,-500.0,0.00026103,2]
[343737628,1732953043136,-500.0,0.00026103,2]
[343737629,1732953043146,-500.0,0.00026103,2]
[343737630,1732953043156,-51.78555823,0.00026103,2]
[343737631,1732953043167,-448.21444177,0.00026103,2]
[343737632,1732953043177,-252.77374506,0.00026103,2]
[343737633,1732953043187,-500.0,0.00026103,2]
[343737634,1732953043196,-500.0,0.00026103,2]
[343737635,1732953043206,-500.0,0.00026103,2]
[343737636,1732953043215,-500.0,0.00026103,2]
[343737637,1732953043224,-500.0,0.00026103,2]
[343737638,1732953043234,-500.0,0.00026103,2]
[343737639,1732953043243,-500.0,0.00026103,2]
[343737640,1732953043256,-500.0,0.00026103,2]
[343737641,1732953043265,-500.0,0.00026103,2]
[343737642,1732953043274,-500.0,0.00026103,2]
[343737643,1732953043283,-500.0,0.00026103,2]
[343737645,1732953043292,-500.0,0.00026103,2]
[343737647,1732953043302,-500.0,0.00026103,2]
[343737649,1732953043312,-500.0,0.00026103,2]
[343737651,1732953043321,-500.0,0.00026103,2]
[343737652,1732953043331,-500.0,0.00026103,2]
[343737654,1732953043340,-500.0,0.00026103,2]
[343737655,1732953043349,-500.0,0.00026103,2]
[343737656,1732953043359,-500.0,0.00026103,2]
[343737657,1732953043368,-500.0,0.00026103,2]
[343737658,1732953043378,-500.0,0.00026103,2]
[343737659,1732953043388,-500.0,0.00026103,2]
[343737660,1732953043397,-500.0,0.00026103,2]
[343737661,1732953043406,-500.0,0.00026103,2]
[343737662,1732953043415,-500.0,0.00026103,2]
[343737663,1732953043424,-500.0,0.00026103,2]
[343737664,1732953043434,-500.0,0.00026103,2]
[343737665,1732953043443,-500.0,0.00026103,2]
[343737666,1732953043452,-500.0,0.00026103,2]
[343737667,1732953043461,-500.0,0.00026103,2]
[343737668,1732953043470,-517.49899653,0.00026103,2]
[343737669,1732953043479,-500.0,0.00026103,2]
[343737670,1732953043489,-500.0,0.00026103,2]
[343737671,1732953043498,-500.0,0.00026103,2]
[343737672,1732953043509,-500.0,0.00026103,2]
[343737673,1732953043519,-500.0,0.00026103,2]
[343737674,1732953043529,-500.0,0.00026103,2]
[343737675,1732953043538,-500.0,0.00026103,2]
[343737676,1732953043548,-500.0,0.00026103,2]
[343737677,1732953043558,-500.0,0.00026103,2]
[343737678,1732953043567,-500.0,0.00026103,2]
[343737679,1732953043578,-500.0,0.00026103,2]
[343737680,1732953043588,-274.59903432,0.00026103,2]
[343737681,1732953043601,-225.40096568,0.00026103,2]
[343737682,1732953043611,-500.0,0.00026103,2]
[343737683,1732953043620,-614.45500202,0.00026103,2]
[343737684,1732953043630,-500.0,0.00026103,2]
[343737685,1732953043640,-500.0,0.00026103,2]
[343737686,1732953043650,-500.0,0.00026103,2]
[343737687,1732953043660,-500.0,0.00026103,2]
[343737688,1732953043669,-500.0,0.00026103,2]
[343737689,1732953043678,-500.0,0.00026103,2]
[343737690,1732953043687,-230.00877897,0.00026103,2]
[343737691,1732953043699,-269.99122103,0.00026103,2]
[343737692,1732953043709,-500.0,0.00026103,2]
[343737693,1732953043718,-500.0,0.00026103,2]
[343737694,1732953043727,-500.0,0.00026103,2]
[343737695,1732953043737,-500.0,0.00026103,2]
[343737697,1732953043746,-500.0,0.00026103,2]
[343737698,1732953043757,-500.0,0.00026103,2]
[343737699,1732953043767,-500.0,0.00026103,2]
[343737700,1732953043777,-500.0,0.00026103,2]
[343737701,1732953043786,-302.67305525,0.00026103,2]
[343737702,1732953043802,-197.32694475,0.00026103,2]
[343737703,1732953043811,-500.0,0.00026103,2]
[343737704,1732953043821,-500.0,0.00026103,2]
[343737705,1732953043830,-500.0,0.00026103,2]
[343737706,1732953043842,-507.28,0.0002749,10]
[343737707,1732953043851,-899.38,0.0002749,3]
[343737708,1732953043861,-6972.50662403,0.000275,5]
[343737709,1732953043887,-4758.05752106,0.000275,5]
[343737726,1732953045865,-58110.36336734,0.000275,5]
[343737757,1732953430931,166.327477,0.00013973,2]
[343737759,1732953738513,174.0,0.00026,30]
[343737765,1732954032142,-487.12432266,0.000199,2]
[343737766,1732954032167,-500.0,0.000199,2]
[343737767,1732954032189,-500.0,0.000199,2]
[343737768,1732954032213,-1169.27083333,0.0002,2]
[343737769,1732954032235,-166.327477,0.00022759,2]
[343737770,1732954032256,-320.187899,0.00025225,2]
[343737771,1732954032277,-151.0,0.00025872,5]
[343737772,1732954032298,-300.0,0.0002593,2]
[343737773,1732954032320,-612.10737645,0.00025931,2]
[343737774,1732954032344,-300.0,0.00025931,2]
[343737775,1732954032366,-2887.25113615,0.00025932,2]
[343739236,1732954174119,-2000.0,0.000198,2]
[343739237,1732954174141,-1169.27083333,0.0002,2]
[343739378,1732954186399,166.524619,0.00013973,2]
[343739866,1732954231967,-166.524619,0.00023435,2]
[343739867,1732954231977,-257.475291,0.00024771,2]
[343739868,1732954231989,-11187.18850555,0.00024771,2]
[343739870,1732954232079,-10484.41016415,0.00024771,2]
[343739871,1732954232088,-167.56247,0.0002514,2]
[343739872,1732954232098,-559.6825293,0.00025228,2]
[343739873,1732954232107,-446.99522937,0.00025832,2]
[343739874,1732954232117,-300.0,0.0002593,2]
[343739875,1732954232127,-300.0,0.0002593,2]
[343739877,1732954232136,-14051.0,0.0002593,2]
[343739879,1732954232145,-1169.27083333,0.00025931,2]
[343739881,1732954232156,-500.5,0.00026,31]
[343739882,1732954232166,-295.1,0.00026,31]
[343739883,1732954232180,-2450.75,0.00026,2]
[343739884,1732954232199,-315.78370383,0.00026178,2]
[343739886,1732954232209,-151.0,0.00026354,5]
[343739887,1732954232220,-500.0,0.00026499,2]
[343739888,1732954232230,-500.0,0.00026499,2]
[343739889,1732954232239,-154.77306115,0.00026499,2]
[343739890,1732954232251,-2000.0,0.000265,2]
[343739891,1732954232262,-500.0,0.00026566,7]
[343739892,1732954232273,-531.0,0.0002664,2]
[343739893,1732954232282,-2377.0,0.0002664,2]
[343739894,1732954232292,-2178.0,0.0002664,2]
[343739895,1732954232302,-151.0,0.00026837,5]
[343739896,1732954232311,-1000.0,0.00027,2]
[343739897,1732954232321,-2000.0,0.00027,2]
[343739898,1732954232331,-799.09224403,0.00027,2]
[343739899,1732954232341,-617.0,0.000272,2]
[343739900,1732954232350,-325.041808,0.00027233,2]
[343739901,1732954232359,-479.58926693,0.00027265,2]
[343739902,1732954232369,-151.0,0.00027319,6]
[343739903,1732954232380,-152.199371,0.00027381,2]
[343739904,1732954232389,-197.19971245,0.0002739,16]
[343739906,1732954232400,-500.0,0.00027397,2]
[343739907,1732954232409,-6108.8528106,0.000274,2]
[343739908,1732954232419,-1987.86034372,0.000274,2]
[343739909,1732954232428,-310.28918519,0.00027487,2]
[343739910,1732954232438,-241.79,0.0002749,3]
[343739911,1732954232448,-850.98,0.0002749,10]
[343739913,1732954232458,-725.37,0.0002749,3]
[343739914,1732954232467,-709.15,0.0002749,10]
[343739915,1732954232476,-590.96,0.0002749,10]
[343739916,1732954232485,-725.79188307,0.00027499,2]
[343739917,1732954232495,-214.57508232,0.00027499,2]
[343739918,1732954232505,-266.91034823,0.00027499,2]
[343739919,1732954232514,-389.58618257,0.00027499,2]
[343739920,1732954232523,-268.82347439,0.00027499,2]
[343739922,1732954232532,-500.0,0.00027499,2]
[343739923,1732954232542,-186.83724376,0.00027499,2]
[343739924,1732954232552,-246.73502315,0.00027499,2]
[343739925,1732954232561,-203973.13086046,0.000275,5]
[343739973,1732954238166,-500.0,0.00026499,2]
[343739974,1732954238177,-453.00864145,0.00026499,2]
[343739975,1732954238188,-194.75263834,0.00026499,2]
[343739976,1732954238199,-500.0,0.00026499,2]
[343739977,1732954238209,-500.0,0.00026499,2]
[343739978,1732954238219,-500.0,0.00026499,2]
[343739979,1732954238230,-500.0,0.00026499,2]
[343739980,1732954238239,-500.0,0.00026499,2]
[343739981,1732954238249,-500.0,0.00026499,2]
[343739982,1732954238260,-449.57105098,0.00026499,2]
[343739984,1732954238270,-500.0,0.00026499,2]
[343739985,1732954238280,-500.0,0.00026499,2]
[343739986,1732954238290,-500.0,0.00026499,2]
[343739987,1732954238299,-787.89193625,0.00026639,2]
[343739988,1732954238308,-492.46,0.0002749,10]
[343739989,1732954238318,-20191.7692886,0.000275,5]
[343739991,1732954238328,-151.0,0.000275,7]
[343739992,1732954238336,-151.635339,0.000275,7]
[343739993,1732954238346,-3000.0,0.000275,2]
[343739994,1732954238359,-163.49,0.000275,2]
[343739995,1732954238368,-500.0,0.000275,5]
[343739996,1732954238378,-1000.0,0.000275,2]
[343739998,1732954238387,-2000.0,0.000275,2]
[343739999,1732954238396,-784.911949,0.000275,24]
[343740000,1732954238406,-3000.0,0.0002751,2]
[343740001,1732954238415,-3000.0,0.0002752,2]
[343740002,1732954238425,-2239.93752137,0.0002753,2]
[343740003,1732954238435,-3539.228043,0.0002753,2]
[343740004,1732954238444,-2146.15585252,0.000276,2]
[343740026,1732954239952,-8243.45226,0.000276,2]
[343740027,1732954239964,-2445.383448,0.000276,2]
[343740068,1732954243089,-362.89594154,0.00027499,2]
[343740069,1732954243100,-2967.15633814,0.000276,2]
[343740070,1732954243112,-3447.38903996,0.000276,2]
[343740071,1732954243124,-9339.75664896,0.000276,2]
[343740073,1732954243136,-30652.00000301,0.000276,2]
[343740074,1732954243148,-4329.38095012,0.000276,2]
[343740075,1732954243160,-41271.78448975,0.000276,2]
[343740076,1732954243171,-36260.6593897,0.000276,2]
[343740078,1732954243234,-93217.06838148,0.000276,2]
[343740079,1732954243245,-42202.48601882,0.000276,2]
[343740110,1732954245989,-500.0,0.00026499,2]
[343740111,1732954246115,-500.0,0.00026499,2]
[343740112,1732954246125,-191.49494378,0.00026499,2]
[343740113,1732954246135,-314.49639687,0.00026499,2]
[343740114,1732954246145,-286831.88174154,0.000276,2]
[343740115,1732954246155,-2052.5,0.000276,2]
[343740116,1732954246166,-1987.86034371,0.000277,2]
[343740117,1732954246176,-231.051234,0.00027723,2]
[343740118,1732954246187,-500.0,0.00027767,120]
[343740119,1732954246198,-622.23,0.00027767,120]
[343740120,1732954246208,-654.81352,0.00027784,15]
[343740121,1732954246218,-1434.0,0.000278,4]
[343740122,1732954246228,-151.0,0.00027802,6]
[343740123,1732954246239,-152.199371,0.00027837,2]
[343740124,1732954246248,-32869.59737311,0.00028,10]
[343740125,1732954246258,-1947.77414317,0.00028,2]
[343740126,1732954246268,-1030.67356033,0.00028,7]
[343740127,1732954246279,-1987.86034371,0.00028,2]
[343740128,1732954246289,-2000.0,0.00028,2]
[343740129,1732954246299,-680.05398093,0.00028048,5]
[343740130,1732954246316,-322.7495701,0.00028055,30]
[343740131,1732954246326,-420.0,0.00028064,2]
[343740132,1732954246336,-231.051234,0.00028065,2]
[343740133,1732954246346,-500.0,0.0002821,7]
[343740134,1732954246356,-151.0,0.00028284,6]
[343740135,1732954246366,-152.199371,0.00028293,2]
[343740136,1732954246376,-1987.86034371,0.000283,2]
[343740137,1732954246386,-5347.353,0.00028356,2]
[343740138,1732954246395,-151.0,0.00028356,2]
[343740139,1732954246405,-231.051234,0.00028407,2]
[343740140,1732954246417,-2000.0,0.000285,2]
[343740141,1732954246427,-420.0,0.00028523,2]
[343740142,1732954246436,-151.0,0.000286,16]
[343740143,1732954246446,-1987.86034371,0.000286,2]
[343740144,1732954246456,-1741.04925336,0.000286,2]
[343740145,1732954246465,-337.05,0.000286,31]
[343740146,1732954246475,-337.05,0.000286,31]
[343740147,1732954246485,-337.05,0.000286,31]
[343740148,1732954246494,-337.05,0.000286,31]
[343740149,1732954246504,-337.05,0.000286,31]
[343740150,1732954246513,-337.05,0.000286,31]
[343740151,1732954246522,-337.05,0.000286,31]
[343740152,1732954246532,-337.05,0.000286,31]
[343740153,1732954246541,-337.05,0.000286,31]
[343740154,1732954246551,-162.7113682,0.00028699,10]
[343740155,1732954246560,-45888.59180734,0.000287,30]
[343740156,1732954246585,-7402.0,0.000287,30]
[343740299,1732954812608,166.647498,0.00013973,2]
[343740312,1732955082681,199.0,0.00016001,2]
[343740314,1732955133100,-249.96105382,0.0001883,2]
[343740315,1732955133123,-5000.0,0.0001902,2]
[343740316,1732955133145,-1169.27083333,0.0002,2]
[343740317,1732955133170,-857.92151952,0.00021826,2]
[343740318,1732955133194,-300.0,0.00021826,2]
[343740319,1732955133214,-37400.39524467,0.00021826,2]
[343740320,1732955151087,-2036.75612477,0.00021608,2]
[343740321,1732955151108,-32998.60475533,0.00021826,2]
[343740322,1732955151129,-500.0,0.00021827,2]
[343740323,1732955151151,-500.0,0.00021827,2]
[343740324,1732955151172,-500.0,0.00021827,2]
[343740325,1732955151195,-500.0,0.00021827,2]
[343740326,1732955151217,-500.0,0.00021827,2]
[343740327,1732955151239,-500.0,0.00021827,2]
[343740328,1732955151260,-500.0,0.00021827,2]
[343740329,1732955151281,-500.0,0.00021827,2]
[343740330,1732955151301,-477.31698223,0.00021827,2]
[343740331,1732955151322,-500.0,0.00021827,2]
[343740332,1732955151342,-158.02439579,0.00021827,2]
[343740333,1732955151365,-500.0,0.00021827,2]
[343740334,1732955151511,-500.0,0.00021827,2]
[343740335,1732955151540,-500.0,0.00021827,2]
[343740336,1732955151564,-500.0,0.00021827,2]
[343740337,1732955151585,-500.0,0.00021827,2]
[343740338,1732955151608,-500.0,0.00021827,2]
[343740339,1732955151629,-500.0,0.00021827,2]
[343740340,1732955151651,-500.0,0.00021827,2]
[343740341,1732955151673,-318.63772402,0.00021827,2]
[343740342,1732955151698,-500.0,0.00021827,2]
[343740343,1732955151719,-500.0,0.00021827,2]
[343740344,1732955151740,-500.0,0.00021827,2]
[343740345,1732955151760,-500.0,0.00021827,2]
[343740346,1732955151780,-1875.54339944,0.00021827,2]
[343740347,1732955151799,-6819.6797203,0.0002183,2]
[343740348,1732955151819,-501.95334987,0.00021873,2]
[343740349,1732955151838,-158.0,0.00022,2]
[343740350,1732955151858,-500.0,0.000225,2]
[343740351,1732955151877,-158.0,0.00023014,2]
[343740352,1732955151896,-759.21,0.00023028,3]
[343740353,1732955151916,-253.07,0.00023038,3]
[343740354,1732955151937,-1000.0,0.00023048,2]
[343740355,1732955151957,-500.0,0.00023049,2]
[343740356,1732955151976,-193.7964613,0.00023049,2]